bitfinex/quotes_ETHUSD_20260119
["timestamp","ask_amount","ask_price","bid_price","bid_amount"]
[1768787424052,1.94586597,3197.2,3196.1,0.002]
[1768787424053,12.45215217,3197.1,3196.1,0.002]
[1768787424251,12.45215217,3197.1,3195.5,0.002]
[1768787424456,12.45215217,3196.7,3195.5,0.509]
[1768787424630,12.96215217,3196.7,3195.5,3.63835573]
[1768787425126,12.96215217,3196.7,3195.5,3.13135573]
[1768787425328,12.96215217,3196.7,3195.5,0.002]
[1768787425652,12.96215217,3196.7,3195.5,3.1313868]
[1768787426463,3.12832384,3196.6,3195.5,0.002]
[1768787426862,6.25664768,3196.6,3195.5,0.002]
[1768787427069,3.12832384,3196.6,3195.5,0.002]
[1768787427360,1.6090476,3196.5,3195.5,0.002]
[1768787429169,1.6090476,3196.5,3195.6,12.92210013]
[1768787429368,0.51,3196.7,3195.5,0.002]
[1768787429538,0.51,3196.7,3195.8,12.92410013]
[1768787429736,0.51,3196.7,3196.0,12.92210013]
[1768787429935,3.12723905,3197.8,3196.0,12.92210013]
[1768787429936,15.57958784,3197.6,3196.0,12.92210013]
[1768787430147,0.51,3197.5,3196.0,12.92210013]
[1768787430547,0.51,3197.5,3195.8,0.002]
[1768787430548,0.03129401,3197.4,3196.2,12.92210013]
[1768787430765,0.03129401,3197.4,3196.3,6.25723492]
[1768787430955,12.45215217,3197.3,3195.9,3.12894778]
[1768787431155,12.45215217,3197.1,3195.8,0.002]
[1768787431355,9.38270548,3197.4,3195.8,0.002]
[1768787431356,12.45215217,3196.9,3195.8,3.13109433]
[1768787431549,0.03129401,3196.8,3195.8,0.002]
[1768787432794,12.45215217,3196.6,3195.5,0.002]
[1768787432995,0.54129401,3196.5,3195.5,0.002]
[1768787433297,1.29934462,3196.4,3195.5,0.002]
[1768787433495,0.03129401,3196.3,3195.5,0.002]
[1768787434260,12.48344618,3196.3,3195.5,0.002]
[1768787434587,12.45215217,3196.3,3195.5,0.002]
[1768787434804,6.28872469,3196.2,3195.5,0.002]
[1768787435087,1.87408769,3196.1,3195.5,0.002]
[1768787436275,1.87408769,3196.1,3195.8,0.002]
[1768787436468,1.87408769,3196.1,3195.5,0.002]
[1768787436801,3.16020514,3196.0,3195.5,0.002]
[1768787437485,18.74126844,3196.0,3195.5,0.002]
[1768787437668,2.11253561,3195.9,3195.5,0.002]
[1768787438464,3.12891113,3196.0,3194.9,0.002]
[1768787438465,12.81959977,3195.8,3194.9,0.002]
[1768787438660,3.63924033,3195.7,3194.9,0.002]
[1768787438863,0.51,3195.7,3194.9,0.002]
[1768787439058,0.51,3195.7,3194.9,11.73387749]
[1768787439378,3.12831735,3196.7,3194.9,11.73387749]
[1768787439379,0.51,3196.2,3194.9,11.73387749]
[1768787439584,3.12774482,3197.2,3194.9,11.73387749]
[1768787439585,12.81959977,3197.1,3195.1,11.73187749]
[1768787439767,0.03129401,3197.0,3195.4,11.73187749]
[1768787439951,0.03129401,3197.0,3195.6,11.73187749]
[1768787440156,0.03129401,3197.0,3195.7,11.73187749]
[1768787440352,0.03129401,3197.0,3195.8,12.23887749]
[1768787440766,19.07566031,3196.9,3195.8,3.12905695]
[1768787441082,0.03129401,3196.8,3195.8,3.63607446]
[1768787441283,0.03129401,3196.8,3195.8,18.4970589]
[1768787441489,0.03129401,3197.0,3195.9,11.73187749]
[1768787441658,0.03129401,3197.0,3196.0,11.73187749]
[1768787441854,3.1273455,3197.6,3196.0,11.73187749]
[1768787442055,0.51,3197.5,3196.0,11.73187749]
[1768787442256,0.03129401,3197.4,3196.0,11.73187749]
[1768787442454,0.03129401,3197.4,3196.1,0.507]
[1768787443075,19.07487765,3197.3,3196.1,0.507]
[1768787443274,12.85089378,3197.2,3196.1,0.507]
[1768787443588,6.25527788,3197.3,3196.1,11.73187749]
[1768787443589,3.12763894,3197.3,3196.1,11.73187749]
[1768787443779,0.54129401,3197.2,3196.1,11.73187749]
[1768787445184,3.6690408,3197.2,3196.2,3.12871534]
[1768787445389,3.6690408,3197.2,3196.1,14.86066422]
[1768787445390,0.36690408,3197.1,3196.1,14.86066422]
[1768787445788,0.36690408,3197.1,3196.1,17.98947746]
[1768787445958,3.6690487,3197.2,3196.2,11.73187749]
[1768787446893,0.54129401,3197.2,3196.2,11.73187749]
[1768787447055,0.54129401,3197.2,3196.3,6.25723492]
[1768787447262,12.81959977,3198.1,3196.4,12.23887749]
[1768787447490,3.12627004,3198.7,3196.4,12.23887749]
[1768787447491,14.64285376,3198.0,3196.4,12.23887749]
[1768787447804,14.61155975,3198.0,3196.4,11.73187749]
[1768787448014,14.61155975,3198.0,3195.8,0.002]
[1768787448015,12.81959977,3196.8,3195.8,0.002]
[1768787448154,0.001,3196.9,3195.8,0.002]
[1768787448155,13.36089378,3196.7,3195.8,0.002]
[1768787448358,14.66578915,3196.7,3195.8,0.002]
[1768787448982,3.12832384,3196.6,3195.8,0.002]
[1768787449156,0.51,3196.5,3195.8,0.002]
[1768787449355,0.03129401,3196.4,3195.8,0.002]
[1768787450004,12.85089378,3196.4,3195.8,0.002]
[1768787450186,14.15568915,3196.3,3195.5,0.002]
[1768787450370,0.03129401,3196.2,3195.5,0.002]
[1768787451107,0.03129401,3196.2,3195.5,11.73387749]
[1768787451276,0.03129401,3196.4,3195.5,0.002]
[1768787451600,0.03129401,3196.4,3195.5,3.13138941]
[1768787451785,0.03129401,3196.4,3195.5,0.002]
[1768787451984,0.36697614,3196.3,3195.5,0.002]
[1768787452179,0.03129401,3196.2,3195.5,0.002]
[1768787452799,0.03129401,3196.2,3195.5,15.01092406]
[1768787452959,0.03129401,3196.6,3195.6,11.87954382]
[1768787453294,0.54129401,3196.5,3195.7,11.87954382]
[1768787453867,0.54129401,3196.5,3195.6,3.12929396]
[1768787454205,0.51,3196.4,3195.5,3.13136047]
[1768787454489,0.03129401,3196.3,3195.5,3.13136047]
[1768787455265,0.36698392,3196.2,3195.5,3.13136047]
[1768787455468,0.03129401,3196.3,3195.5,3.13136047]
[1768787455697,0.03129401,3196.3,3195.5,11.87954382]
[1768787455894,0.03129401,3196.3,3195.5,15.00887348]
[1768787456262,12.77582607,3196.3,3194.9,0.002]
[1768787456467,12.74453206,3196.1,3194.9,3.13190887]
[1768787456763,12.74453206,3196.1,3194.9,0.002]
[1768787457608,12.74453206,3195.9,3194.9,0.002]
[1768787457777,0.51,3195.8,3194.9,0.002]
[1768787457975,13.25453206,3195.8,3194.9,0.002]
[1768787458319,1.32545321,3195.7,3194.9,0.002]
[1768787458870,1.32545321,3195.7,3194.9,11.88154382]
[1768787459096,0.51,3195.8,3194.9,11.88154382]
[1768787459597,14.07311467,3196.2,3195.0,15.00943427]
[1768787459765,0.51,3195.9,3195.0,15.00943427]
[1768787460170,0.51,3195.9,3195.1,11.87954382]
[1768787460381,0.51,3196.0,3195.2,0.002]
[1768787460982,0.03129401,3195.9,3195.2,0.002]
[1768787461503,0.51,3196.0,3195.2,0.002]
[1768787461693,13.13981083,3195.9,3195.2,0.002]
[1768787461889,13.10851682,3195.9,3194.9,0.002]
[1768787462200,12.74453206,3195.7,3194.2,0.002]
[1768787462499,12.74453206,3195.7,3194.2,11.88154382]
[1768787462500,0.51,3195.6,3194.2,11.88154382]
[1768787462719,1.32545321,3195.5,3194.5,11.87954382]
[1768787462879,0.51,3195.4,3194.5,11.87954382]
[1768787463276,0.51,3195.4,3194.5,15.00988461]
[1768787463475,3.63954474,3195.4,3194.2,11.88154382]
[1768787463715,16.3840768,3195.4,3194.4,3.13043987]
[1768787463883,1.770953,3195.3,3194.4,6.2609182]
[1768787464213,1.770953,3195.3,3194.5,11.87954382]
[1768787464392,1.32545321,3195.5,3194.5,11.87954382]
[1768787464393,1.83545321,3195.5,3194.5,11.87954382]
[1768787464598,22.1526,3200.3,3194.7,11.87954382]
[1768787464599,12.74453206,3196.7,3194.7,11.87954382]
[1768787465105,0.51,3196.8,3194.9,11.87954382]
[1768787465311,0.03129401,3196.7,3194.9,11.87954382]
[1768787465611,3.15960681,3196.7,3195.1,11.87954382]
[1768787465807,3.15960681,3196.7,3195.3,11.87954382]
[1768787465808,0.03129401,3196.7,3195.3,11.87954382]
[1768787466106,15.90407446,3196.7,3195.3,11.87954382]
[1768787466307,15.87276052,3196.7,3195.2,0.507]
[1768787466605,12.74453206,3196.6,3195.2,0.507]
[1768787466778,12.77582607,3196.5,3195.2,0.507]
[1768787467106,12.77582607,3196.4,3195.2,0.507]
[1768787467305,1.81887662,3196.3,3195.2,12.38654382]
[1768787467606,15.87266026,3196.8,3195.4,11.87954382]
[1768787467607,0.51,3196.4,3195.4,11.87954382]
[1768787468520,0.03129401,3196.3,3195.3,6.25919318]
[1768787468681,12.77582607,3196.3,3195.2,0.507]
[1768787468880,12.74453206,3196.3,3195.2,3.12969073]
[1768787469083,0.03129401,3196.2,3195.2,3.12969073]
[1768787469315,1.27758261,3196.1,3195.2,3.12969073]
[1768787469609,1.27758261,3196.1,3195.0,11.87954382]
[1768787469610,1.27758261,3196.1,3195.1,3.12979249]
[1768787469778,0.03129401,3196.0,3195.1,15.00933631]
[1768787469978,0.03129401,3196.0,3195.1,18.6461288]
[1768787470188,0.03129401,3196.0,3195.1,15.51633631]
[1768787470387,0.03129401,3196.0,3195.1,18.6461288]
[1768787470586,12.74453206,3197.2,3195.2,11.87954382]
[1768787470815,0.51,3196.6,3195.2,11.87954382]
[1768787471378,3.16035994,3196.9,3195.2,11.87954382]
[1768787471379,0.001,3196.9,3195.2,11.87954382]
[1768787471705,0.001,3196.9,3195.1,13.02616996]
[1768787471706,0.001,3196.9,3195.6,11.87954382]
[1768787471890,0.001,3196.9,3195.5,9.38820213]
[1768787471891,0.001,3196.9,3195.8,11.87954382]
[1768787472595,0.001,3196.9,3195.8,10.87006682]
[1768787472784,0.03129401,3197.4,3195.8,11.87954382]
[1768787474017,3.15892518,3197.4,3196.0,11.87954382]
[1768787474322,5.11301354,3197.4,3196.0,11.87954382]
[1768787474693,1.55278308,3200.2,3196.0,11.87954382]
[1768787474694,12.74453206,3198.1,3196.0,11.87954382]
[1768787474898,19.53973475,3198.0,3196.0,11.87954382]
[1768787475092,19.50844074,3198.0,3196.0,11.87954382]
[1768787475298,12.77582607,3197.9,3196.0,11.87954382]
[1768787475499,1.95397348,3197.8,3196.2,11.87954382]
[1768787475833,1.95397348,3197.8,3196.3,12.38654382]
[1768787475987,1.95397348,3197.8,3196.4,18.13658298]
[1768787476188,0.51,3197.7,3196.5,11.87954382]
[1768787476384,5.08115826,3197.8,3196.5,11.87954382]
[1768787476700,12.74453206,3197.9,3196.5,11.87954382]
[1768787476701,1.81386304,3197.7,3196.5,11.87954382]
[1768787476898,0.51,3197.9,3196.5,11.87954382]
[1768787477490,0.03129401,3197.8,3196.5,11.87954382]
[1768787478007,0.03129401,3197.8,3196.6,6.25664768]
[1768787478328,0.51,3197.9,3196.8,11.87954382]
[1768787478528,0.03129401,3197.8,3196.8,11.87954382]
[1768787479095,12.77582607,3197.8,3196.4,11.87954382]
[1768787479398,12.74453206,3197.6,3196.5,3.63540167]
[1768787479606,12.74453206,3197.6,3196.5,6.76382338]
[1768787479927,12.74453206,3197.6,3196.5,3.63540167]
[1768787480111,15.87207318,3197.4,3196.5,3.63540167]
[1768787480432,0.03129401,3197.3,3196.5,0.507]
[1768787480600,1.59033672,3197.2,3196.5,0.507]
[1768787480809,1.59033672,3197.2,3196.5,3.63539586]
[1768787481011,1.59033672,3197.2,3196.5,6.76381757]
[1768787481212,12.77582607,3197.6,3196.2,11.87954382]
[1768787481441,12.74453206,3197.4,3196.1,3.12877626]
[1768787481628,12.74453206,3197.2,3195.6,0.507]
[1768787481793,12.74453206,3197.0,3195.9,3.12893798]
[1768787481994,12.77582607,3196.9,3195.9,3.12893798]
[1768787482292,1.81887662,3196.8,3195.7,6.25840515]
[1768787482829,1.81887662,3196.8,3195.8,12.83362954]
[1768787482994,0.54129401,3196.8,3195.8,12.83362954]
[1768787483398,0.54129401,3196.8,3195.7,6.25840515]
[1768787483792,0.54129401,3196.8,3195.7,19.09203469]
[1768787484212,0.54129401,3196.8,3195.8,12.83362954]
[1768787485239,0.001,3197.1,3195.8,12.83362954]
[1768787486132,0.001,3197.1,3196.0,9.38673339]
[1768787486327,0.001,3197.1,3196.1,13.34062954]
[1768787486516,0.001,3197.1,3196.1,12.83362954]
[1768787486697,0.001,3197.1,3196.2,0.507]
[1768787487526,0.001,3197.1,3196.2,13.34062954]
[1768787488528,0.001,3197.1,3196.3,6.25723492]
[1768787489242,0.001,3197.1,3196.3,19.09086446]
[1768787489537,0.001,3197.1,3196.3,22.21948192]
[1768787489831,3.12708024,3197.9,3196.3,22.21948192]
[1768787489832,13.48845084,3197.9,3196.4,12.83362954]
[1768787490037,13.48845084,3197.9,3196.6,12.83362954]
[1768787490038,1.69284047,3197.8,3196.6,12.83362954]
[1768787490223,1.69284047,3197.8,3196.7,0.507]
[1768787490410,14.67129131,3197.8,3196.8,3.12812812]
[1768787490610,14.6399973,3197.8,3196.8,6.25625624]
[1768787491295,0.03129401,3197.7,3196.8,3.12812812]
[1768787491830,14.6399973,3197.8,3196.8,3.12812812]
[1768787492130,1.66154646,3197.8,3196.9,12.83362954]
[1768787492332,0.51,3198.0,3196.9,12.83362954]
[1768787492638,0.51,3198.0,3197.1,12.83362954]
[1768787492848,0.51,3198.0,3197.0,3.12793243]
[1768787492849,0.03129401,3197.9,3197.0,3.12793243]
[1768787493152,12.97845084,3198.2,3197.0,6.25586486]
[1768787493323,0.51,3198.1,3197.0,19.0894944]
[1768787493520,1.34884508,3198.0,3197.0,19.0894944]
[1768787493734,13.00974485,3197.9,3195.9,12.83362954]
[1768787493941,13.00974485,3197.9,3196.3,3.12858709]
[1768787493942,12.97845084,3197.9,3196.3,3.12858709]
[1768787494549,12.97845084,3197.7,3196.2,3.63567952]
[1768787494750,12.97845084,3197.5,3196.3,3.12860874]
[1768787494949,12.97845084,3197.3,3196.3,3.12860874]
[1768787495137,0.03129401,3197.2,3196.3,3.12860874]
[1768787495342,0.51,3197.1,3196.2,0.507]
[1768787495847,0.51,3197.1,3195.6,12.83362954]
[1768787495848,13.00974485,3197.0,3195.6,12.83362954]
[1768787496042,12.97845084,3197.0,3195.7,13.34062954]
[1768787496245,12.97845084,3197.0,3196.2,3.12870626]
[1768787496746,0.03129401,3196.9,3196.1,0.002]
[1768787497049,13.00974485,3196.9,3196.1,0.002]
[1768787497251,12.97845084,3196.9,3196.1,0.002]
[1768787497454,1.61064027,3196.8,3196.1,0.002]
[1768787499524,12.93392615,3197.1,3196.1,0.002]
[1768787499944,16.06176156,3197.1,3196.1,0.002]
[1768787500351,0.03129401,3197.0,3196.1,12.93730149]
[1768787500526,3.15893469,3197.3,3196.1,12.93730149]
[1768787500727,22.1526,3201.8,3196.7,12.93530149]
[1768787500728,12.42392615,3198.3,3196.7,12.93530149]
[1768787500932,15.55084582,3198.1,3196.8,13.47358277]
[1768787501230,3.12668707,3198.3,3196.8,13.44230149]
[1768787501231,3.12672861,3198.3,3196.8,13.44230149]
[1768787501760,0.51,3198.2,3196.9,12.93530149]
[1768787501959,3.63681579,3198.2,3196.9,12.93530149]
[1768787502135,0.51,3198.2,3196.9,12.93530149]
[1768787502732,15.55078851,3198.1,3197.1,3.1278346]
[1768787502952,12.42392615,3198.1,3197.1,3.1278346]
[1768787503665,12.42392615,3198.0,3196.1,12.93730149]
[1768787503841,12.42392615,3198.0,3196.3,13.44230149]
[1768787504165,12.42392615,3197.8,3196.6,3.12826548]
[1768787504468,0.51,3197.7,3196.6,16.06356697]
[1768787504758,0.51,3197.8,3196.9,3.12798953]
[1768787504929,3.63718794,3197.8,3196.8,3.12805028]
[1768787505131,0.51,3197.8,3196.8,3.12805028]
[1768787505354,0.51,3197.8,3196.8,6.2561784]
[1768787505553,12.42392615,3198.0,3196.8,19.19147989]
[1768787505839,0.51,3198.0,3196.9,12.93530149]
[1768787506957,0.51,3198.0,3197.0,6.25586486]
[1768787507161,0.51,3198.0,3197.1,13.44230149]
[1768787507368,0.51,3198.0,3197.2,12.93530149]
[1768787508268,0.51,3198.3,3197.2,12.93530149]
[1768787508465,3.12604269,3199.0,3197.2,12.93530149]
[1768787508466,12.42392615,3199.0,3197.2,12.93530149]
[1768787508670,18.67577747,3199.1,3197.2,12.93530149]
[1768787508971,6.438,3199.5,3197.2,12.93530149]
[1768787508972,12.42392615,3198.8,3197.5,3.12744331]
[1768787509170,12.42392615,3198.8,3197.1,13.44230149]
[1768787509365,12.42392615,3198.8,3197.4,3.12751337]
[1768787509889,0.001,3197.7,3197.4,3.12751337]
[1768787510177,0.51,3198.4,3197.5,12.93530149]
[1768787510387,1.86767775,3199.0,3197.5,13.44230149]
[1768787510737,0.51,3198.9,3197.5,13.44230149]
[1768787511171,0.51,3198.9,3197.7,12.93530149]
[1768787511765,0.001,3199.2,3197.7,12.93530149]
[1768787513072,0.001,3199.2,3197.9,11.83456343]
[1768787513260,11.90758614,3199.2,3197.9,11.83456343]
[1768787513586,0.001,3199.2,3197.9,11.83456343]
[1768787515076,0.001,3199.2,3198.1,11.83456343]
[1768787515375,0.001,3199.2,3198.3,11.83456343]
[1768787516580,11.90758614,3199.2,3198.2,0.507]
[1768787516943,0.001,3199.2,3198.2,12.34156343]
[1768787517172,0.001,3199.2,3198.3,18.08788549]
[1768787517851,11.90658614,3200.3,3198.5,11.83456343]
[1768787518045,3.12367118,3201.4,3198.3,6.25332206]
[1768787518046,11.90658614,3200.4,3198.7,11.83456343]
[1768787518240,3.12452062,3200.5,3198.9,11.83456343]
[1768787518241,13.40969682,3200.3,3198.9,11.83456343]
[1768787518476,13.40969682,3200.3,3198.6,0.507]
[1768787518477,13.40969682,3200.3,3199.0,12.34156343]
[1768787518670,13.40969682,3200.3,3199.1,12.34156343]
[1768787518874,13.91969682,3200.3,3199.2,0.507]
[1768787519059,11.90658614,3200.1,3199.2,3.63272981]
[1768787519262,13.29855582,3200.1,3199.2,3.63272981]
[1768787520250,13.29855582,3200.1,3198.5,11.83456343]
[1768787520463,13.29855582,3200.1,3197.7,11.83456343]
[1768787520669,13.29855582,3200.1,3197.9,3.12695677]
[1768787520990,11.90658614,3199.9,3197.9,3.12697031]
[1768787521193,11.90658614,3199.7,3197.7,6.25442006]
[1768787521402,11.90658614,3199.7,3197.7,3.12717236]
[1768787521896,11.90658614,3199.5,3197.7,3.12717236]
[1768787522090,11.90658614,3199.3,3197.7,3.12717236]
[1768787522289,0.128,3199.6,3197.7,3.12717236]
[1768787522290,11.90658614,3199.1,3197.7,3.12717236]
[1768787522865,11.90658614,3199.1,3197.7,18.08898349]
[1768787523064,0.51,3199.0,3197.9,3.12705212]
[1768787523263,0.001,3199.9,3198.0,12.34156343]
[1768787523264,15.03213827,3199.5,3198.0,12.34156343]
[1768787523479,12.41658614,3199.3,3198.0,0.507]
[1768787523686,1.24165861,3199.2,3198.1,0.67611042]
[1768787524035,13.14824475,3199.2,3198.1,0.67611042]
[1768787524146,0.51,3199.3,3198.1,12.51067385]
[1768787524787,12.41658614,3199.3,3198.1,12.51067385]
[1768787525096,11.90658614,3199.1,3198.0,3.63386217]
[1768787525390,11.90658614,3199.1,3198.0,6.76081651]
[1768787525791,11.90658614,3199.1,3198.0,0.507]
[1768787526099,11.90658614,3199.1,3198.0,3.63395166]
[1768787526708,3.12578144,3199.2,3198.0,3.63395166]
[1768787526709,0.51,3199.2,3198.1,11.86583198]
[1768787526852,12.41658614,3199.2,3198.0,3.63395166]
[1768787527249,15.03246529,3199.1,3198.0,3.63395166]
[1768787527893,11.90658614,3199.0,3198.0,3.63395166]
[1768787528195,11.90658614,3199.0,3198.0,6.760906]
[1768787529093,0.51,3199.2,3198.1,11.83456343]
[1768787529304,0.51,3199.1,3198.1,11.83456343]
[1768787529459,0.51,3199.1,3198.3,11.83456343]
[1768787529662,0.51,3199.3,3198.3,11.83456343]
[1768787530504,0.51,3199.4,3198.3,11.83456343]
[1768787530851,11.90758614,3199.9,3198.4,12.34156343]
[1768787531071,0.51,3199.8,3198.4,12.34156343]
[1768787531698,0.51,3199.8,3198.6,11.83456343]
[1768787531909,0.001,3199.9,3198.6,11.83456343]
[1768787532088,0.511,3199.9,3198.6,11.83456343]
[1768787532288,11.90658614,3199.8,3198.1,3.12679435]
[1768787532457,11.90658614,3199.8,3198.2,3.12669996]
[1768787532961,11.90658614,3199.8,3198.1,0.507]
[1768787533469,11.90658614,3199.6,3198.1,0.507]
[1768787533871,11.90658614,3199.6,3198.3,0.002]
[1768787534065,11.90658614,3199.4,3198.3,0.002]
[1768787534779,2.12824651,3199.5,3198.3,0.002]
[1768787535093,0.51,3199.4,3198.3,0.002]
[1768787535460,3.63563879,3199.4,3198.3,0.002]
[1768787535653,3.12539067,3199.6,3198.3,0.002]
[1768787535859,3.12539067,3199.6,3198.3,11.83656343]
[1768787536060,3.63539067,3199.6,3198.3,11.83656343]
[1768787536387,0.001,3199.9,3198.5,11.83456343]
[1768787536592,0.511,3199.9,3198.7,11.83456343]
[1768787536788,15.54276057,3199.9,3198.7,11.83456343]
[1768787536990,11.90658614,3199.8,3198.6,0.507]
[1768787537686,3.12529299,3199.7,3198.6,3.63328]
[1768787537853,13.72229618,3199.6,3198.3,0.002]
[1768787538059,13.72229618,3199.6,3198.3,3.12856676]
[1768787538288,13.72229618,3199.6,3198.6,3.12636203]
[1768787538704,13.72229618,3199.6,3198.6,6.25272981]
[1768787538705,0.51,3199.5,3198.6,6.25272981]
[1768787539006,0.51,3199.5,3198.6,18.08729324]
[1768787539308,0.51,3199.7,3198.7,11.83456343]
[1768787539467,0.51,3199.7,3198.6,6.75972981]
[1768787539822,3.63537081,3199.7,3198.6,6.75972981]
[1768787540167,3.12537081,3199.7,3198.6,6.75972981]
[1768787540363,0.51,3199.7,3198.7,11.83456343]
[1768787541191,0.51,3199.8,3198.7,11.83456343]
[1768787541400,0.51,3199.8,3198.6,6.75972981]
[1768787541401,12.41658614,3199.8,3198.6,3.63336203]
[1768787541632,12.41658614,3199.8,3198.6,6.75972981]
[1768787541776,12.41658614,3199.8,3198.6,3.63336203]
[1768787541777,15.03187913,3199.7,3198.6,3.63336203]
[1768787541966,20.02396078,3199.7,3198.6,7.43571157]
[1768787542163,16.89866779,3199.7,3198.6,7.43571157]
[1768787542487,1.86678866,3199.7,3198.7,12.71246523]
[1768787542657,0.51,3199.8,3198.7,12.71246523]
[1768787542872,0.511,3199.9,3198.7,12.71246523]
[1768787543058,15.8363279,3199.9,3198.7,12.71246523]
[1768787543293,15.8363279,3199.9,3198.6,7.43571157]
[1768787543294,12.20021604,3199.8,3198.6,3.63336203]
[1768787544075,3.12529299,3199.7,3198.6,6.75972981]
[1768787544281,4.70894389,3199.7,3198.6,6.75972981]
[1768787544481,1.5836509,3199.7,3198.7,12.71246523]
[1768787544679,0.001,3199.9,3198.7,12.71246523]
[1768787545272,0.001,3199.9,3198.6,13.01246537]
[1768787545273,0.001,3199.9,3198.9,12.71246523]
[1768787545490,0.001,3199.9,3199.0,0.507]
[1768787545690,0.001,3199.9,3199.0,13.21946523]
[1768787546417,0.001,3199.9,3199.1,3.12587915]
[1768787546587,0.001,3199.9,3199.1,6.2517583]
[1768787546788,0.001,3199.9,3199.1,18.96422353]
[1768787547111,0.001,3199.6,3199.1,6.2517583]
[1768787547287,0.001,3199.6,3199.2,12.71246523]
[1768787547707,0.001,3199.9,3199.2,12.71246523]
[1768787548224,0.001,3199.9,3199.2,3.12576722]
[1768787549389,0.001,3199.9,3199.0,3.12588255]
[1768787549593,0.001,3199.9,3198.3,0.002]
[1768787549594,12.71021604,3199.8,3198.7,3.63320062]
[1768787549824,12.71021604,3199.8,3198.7,0.507]
[1768787549825,13.47133764,3199.7,3198.7,0.507]
[1768787550323,12.20021604,3199.5,3198.7,0.507]
[1768787550516,12.20021604,3199.5,3198.3,0.002]
[1768787550721,12.20021604,3199.5,3198.3,3.63560618]
[1768787550882,12.20021604,3199.5,3198.5,3.12640488]
[1768787551088,1.84509974,3199.4,3198.7,3.12626687]
[1768787551287,3.12539067,3199.6,3198.7,3.12626687]
[1768787551483,3.63539067,3199.6,3198.7,3.12626687]
[1768787551688,6.76078134,3199.6,3198.6,12.71246523]
[1768787552095,3.63539067,3199.6,3198.7,3.12624504]
[1768787552508,1.2711216,3199.7,3198.7,6.75951508]
[1768787552723,0.001,3199.9,3198.8,12.71246523]
[1768787554698,0.001,3199.9,3198.9,6.25214916]
[1768787555028,0.001,3199.9,3199.0,12.74372499]
[1768787555230,12.20121604,3200.6,3199.3,12.71246523]
[1768787555231,0.511,3200.6,3199.3,12.71246523]
[1768787555416,3.63547573,3200.6,3199.3,12.71246523]
[1768787556128,6.75995146,3200.6,3199.3,12.71246523]
[1768787556332,3.63547573,3200.6,3199.3,12.71246523]
[1768787556646,12.20021604,3200.5,3199.4,0.507]
[1768787556834,15.32480081,3200.5,3199.5,6.2509767]
[1768787557017,18.44938558,3200.5,3199.5,3.12548835]
[1768787557217,15.32480081,3200.5,3199.5,3.12548835]
[1768787557420,3.12543997,3200.6,3199.6,12.71246523]
[1768787557623,0.001,3200.6,3199.6,12.71246523]
[1768787558444,12.67853305,3200.5,3199.1,3.12583542]
[1768787558605,12.67853305,3200.5,3199.4,0.507]
[1768787558929,6.24921884,3200.4,3199.4,3.63257772]
[1768787559206,0.001,3200.6,3199.4,3.63257772]
[1768787559207,0.001,3200.6,3199.5,12.42157111]
[1768787560645,0.001,3200.6,3199.7,12.42157111]
[1768787560864,0.001,3200.6,3199.9,6.2501953]
[1768787561212,0.001,3200.6,3199.9,15.54666876]
[1768787561521,0.001,3200.6,3199.9,18.67176641]
[1768787561938,0.001,3200.6,3200.0,12.42157111]
[1768787562930,0.001,3200.6,3200.1,18.67137579]
[1768787563130,0.001,3200.6,3200.2,0.81958354]
[1768787563358,0.001,3200.6,3200.2,13.24115465]
[1768787563653,12.67853305,3201.6,3200.3,0.507]
[1768787564261,12.67853305,3201.6,3200.3,12.92857111]
[1768787564462,12.67853305,3201.4,3200.3,0.507]
[1768787564669,12.67853305,3201.4,3199.6,3.12534116]
[1768787564670,12.67853305,3201.4,3199.6,12.42157111]
[1768787564964,12.67853305,3201.2,3199.7,0.507]
[1768787565166,12.67853305,3201.0,3199.5,0.507]
[1768787565369,12.67853305,3201.0,3199.4,12.42157111]
[1768787565569,12.67853305,3200.8,3199.6,0.507]
[1768787566266,13.18853305,3200.8,3199.6,0.507]
[1768787566833,12.67853305,3200.6,3199.5,0.507]
[1768787568875,3.12451179,3200.5,3199.6,3.12539067]
[1768787569237,12.67853305,3200.6,3199.6,3.12539067]
[1768787569238,3.12445215,3200.6,3199.7,12.42157111]
[1768787569777,3.63424772,3200.8,3199.7,12.42157111]
[1768787569959,3.12424772,3200.8,3199.7,12.42157111]
[1768787570158,6.24849544,3200.8,3199.7,12.42157111]
[1768787570358,12.67853305,3200.7,3199.7,12.42157111]
[1768787570564,12.67853305,3200.7,3199.7,12.42357111]
[1768787570963,0.001,3200.3,3199.8,3.12519532]
[1768787571157,0.001,3200.3,3199.7,0.509]
[1768787571871,12.67953305,3200.3,3199.7,0.002]
[1768787572370,0.001,3200.3,3199.7,0.002]
[1768787574459,0.001,3200.3,3199.7,12.83102013]
[1768787575478,0.001,3200.3,3199.7,15.95629968]
[1768787576783,0.001,3200.3,3199.7,0.509]
[1768787577576,0.001,3200.3,3199.7,3.63428602]
[1768787578584,1.26785331,3200.9,3199.8,12.82902013]
[1768787578585,3.12427748,3200.8,3199.8,12.82902013]
[1768787578756,11.81017639,3200.7,3199.7,3.63428602]
[1768787579588,11.81017639,3200.9,3199.8,12.82902013]
[1768787580267,11.81017639,3200.9,3199.7,3.63428602]
[1768787580922,6.24804748,3201.0,3199.8,12.82902013]
[1768787581066,6.24804748,3201.0,3199.7,6.75957901]
[1768787581067,0.62480475,3200.9,3199.9,12.82902013]
[1768787581471,6.24843788,3200.8,3199.9,15.95407872]
[1768787581698,3.12421894,3200.8,3199.9,12.82902013]
[1768787581903,3.12421894,3200.8,3199.9,15.95410913]
[1768787582268,0.62480475,3200.9,3200.0,12.82902013]
[1768787582600,0.51,3201.1,3200.0,12.82902013]
[1768787582811,0.51,3201.1,3200.2,12.82902013]
[1768787583098,3.12367605,3201.4,3200.2,12.82902013]
[1768787583403,5.52606387,3201.5,3200.2,12.82902013]
[1768787583609,11.81017639,3201.7,3200.3,6.2494141]
[1768787583610,3.12343828,3201.6,3200.3,6.2494141]
[1768787583818,0.51,3201.6,3200.4,12.82902013]
[1768787584170,0.51,3201.6,3200.5,0.507]
[1768787584365,0.51,3201.6,3200.6,12.82902013]
[1768787584571,14.93345256,3201.8,3200.6,12.82902013]
[1768787584803,11.81017639,3201.7,3200.6,12.82902013]
[1768787585305,11.81017639,3201.7,3200.7,0.507]